[Event "Fagernes GM Open Autumn 2024"]
[Site "Fagernes"]
[Date "2024.10.06"]
[Round "1.12"]
[White "Willow, Jonah B"]
[Black "Kanyamarala, Trisha"]
[Result "1-0"]
[ECO "B67"]
[WhiteElo "2420"]
[BlackElo "2160"]
[Annotator "TA"]
[PlyCount "101"]
[EventDate "2024.10.03"]
[EventType "swiss"]
[EventCountry "NOR"]
[SourceTitle "playchess.com"]
[Source "ChessBase"]
[SourceQuality "1"]
[TimeControl "40/6000:2400+30"]

{[%evp 16,101,39,33,41,21,34,16,38,40,66,66,93,95,91,96,77,47,47,44,94,88,77,66,66,75,88,71,101,75,99,77,112,119,123,117,136,80,130,120,155,146,130,100,92,91,98,102,87,86,82,102,186,53,50,0,186,197,345,323,294,290,301,293,391,386,455,453,437,401,694,450,454,453,941,938,5134,2891,29972,29974,29970,10086,5414,5297,29986,29987,29996,29995]} 1. e4 {[%emt 0:00:00]} c5 {[%emt 0:00:00]} 2. Nf3 {[%emt 0:00:00]} d6 {[%emt 0:00:00]} 3. d4 {[%emt 0:00:00]} cxd4 {[%emt 0:00:00]} 4. Nxd4 {[%emt 0:00:00]} Nf6 {[%emt 0:00:00]} 5. Nc3 {[%emt 0:00:00]} Nc6 {[%emt 0:00:00]} 6. Bg5 {[%emt 0:00:00]} e6 {[%emt 0:00:00]} 7. Qd2 {[%emt 0:00:00]} a6 {[%emt 0:00:00]} 8. O-O-O {[%emt 0:00:00]} Bd7 {[%emt 0:00:00]} 9. Kb1 {[%emt 0:01:23]} b5 {[%emt 0:00:00]} 10. Nxc6 {[%emt 0:04:54]} Bxc6 {[%emt 0:00:00]} 11. f3 {[%emt 0:00:00]} Qb6 {[%emt 0:03:27] The position is equal.} 12. h4 {[%emt 0:14:16]} Be7 {[%emt 0:04:18]} 13. g4 {[%emt 0:06:24]} h6 {[%emt 0:04:28]} 14. Be3 {[%emt 0:02:41]} Qb7 {[%emt 0:03:48]} 15. Bg2 {[%emt 0:05:43]} O-O-O {[%emt 0:07:46]} 16. Qf2 {[%emt 0:12:52]} Nd7 {[%emt 0:07:50]} 17. Bd4 {[%emt 0:17:36]} Rh7 {[%emt 0:05:24]} ({Black should try} 17... Rhg8 $14) 18. Ne2 $16 {[%emt 0:03:38]} Ne5 {[%emt 0:04:15]} 19. b3 {[%emt 0:03:11]} Kb8 {[%emt 0:06:18]} 20. Bb2 {[%emt 0:01:32]} Rc8 {[%emt 0:01:48]} 21. Nd4 {[%emt 0:01:25]} Bd7 {[%emt 0:01:01]} 22. Qd2 {[%emt 0:06:19]} Nc6 {[%emt 0:03:18]} 23. Ne2 {[%emt 0:03:37]} b4 {[%emt 0:05:10]} 24. f4 {[%emt 0:00:46]} Na7 {[%emt 0:04:10]} 25. Nd4 {[%emt 0:00:32]} a5 {[%emt 0:01:03]} 26. g5 {[%emt 0:06:31]} ({Better is} 26. a4) 26... hxg5 {[%emt 0:01:23]} (26... Nb5 $142) 27. hxg5 {[%emt 0:00:09]} (27. fxg5 $6 g6 $11) 27... Rch8 {[%emt 0:00:00]} 28. Rxh7 {[%emt 0:00:20]} Rxh7 {[%emt 0:00:00]} 29. e5 {[%emt 0:01:47]} d5 {[%emt 0:00:00] [#]} 30. f5 $1 {[%emt 0:01:02]} g6 {[%emt 0:06:00]} 31. fxg6 {[%emt 0:00:06]} fxg6 {[%emt 0:00:00]} 32. Qd3 {[%emt 0:00:12] Prevents Nb5.} Rh5 {[%emt 0:00:16]} 33. Bc1 $36 {[%emt 0:00:07][%mdl 2048] Keeping Black busy. White is more active.} Rh2 {[%emt 0:02:29]} (33... Bc5 $16 {might work better.}) 34. Qg3 {[%emt 0:00:52]} ({Only move:} 34. Bh3 $1 $18) 34... Rh7 $14 {[%emt 0:00:53]} 35. Qd3 {[%emt 0:00:00]} (35. Bf1 $14) 35... Rh2 $18 {[%emt 0:01:51][%cal Bh7h2,Bh2e2,Be2e4][%mdl 32] White now steadily converts the win.} 36. Bh3 {[%emt 0:00:00][%cal Oc1f4,Bg2h3,Bh3g4,Bg4e6,Be6d5][%mdl 32]} Nb5 {[%emt 0:06:42] [#]} (36... Nc6 {was called for.}) 37. Nxb5 $1 {[%emt 0:00:00]} Bxb5 {[%emt 0:00:00]} 38. Qg3 {[%emt 0:00:00]} (38. Qxg6 Rxh3 39. Qxe6 Rh2 $14) 38... Re2 {[%emt 0:00:00]} 39. Bg4 {[%emt 0:00:00][%cal Od1h1] Hoping for Rh1!} (39. Bxe6 $2 {perishes.} Qc6 40. Rd2 Qxe6 $19) 39... Re4 {[%emt 0:00:13]} 40. Bxe6 {[%emt 0:01:15]} Qc7 {[%emt 0:04:56]} 41. Bxd5 {[%emt 0:07:41]} ({Less strong is} 41. Rxd5 Bc6 42. Rd1 Bc5 $18) 41... Re2 {[%emt 0:01:02] [#]} 42. Bd2 $1 {[%emt 0:02:04] aiming for Bf3.} Ka7 {[%emt 0:01:54] [#]} (42... Bc5 $142 43. Bf3 Rf2) 43. Re1 $1 {[%emt 0:10:00]} Rxe1+ {[%emt 0:03:45]} 44. Qxe1 {[%emt 0:00:48]} ({Weaker is} 44. Bxe1 Be8 45. Bd2 Bc5 $18) 44... Qd8 {[%emt 0:01:47]} (44... Bc5 $142 45. Qe4 Be8) 45. Bh1 {[%emt 0:01:27][%cal Oe1e4] White wants to mate with Qe4!} Ba6 {[%emt 0:01:07]} 46. e6 {[%emt 0:00:56]} Bc5 {[%emt 0:00:28] Repels Qg1} 47. Be3 {[%emt 0:01:26]} Bxe3 {[%emt 0:00:07]} 48. Qxe3+ {[%emt 0:00:02]} Qb6 {[%emt 0:00:13]} 49. Qe4 {[%emt 0:01:54][%csl Gh1][%cal Re4a8]} Qg1+ {[%emt 0:00:10]} 50. Kb2 {[%emt 0:00:02]} Qxg5 {[%emt 0:00:22]} 51. Qd4+ {[%emt 0:00:04] Weighted Error Value: White=0.22 (precise) /Black=0.57.  Mistake:       	White=3     	Black=6      Inaccurate:     	White=2     	Black=6      OK:         	White=16    	Black=9      Best:        	---       	Black=4      Strong:       	White=2     	---        Brilliant:      	White=1     	---} 1-0

[Event "Fagernes GM Open Autumn 2024"]
[Site "Fagernes"]
[Date "2024.10.06"]
[Round "1.13"]
[White "Southcott-Moyers, Indy"]
[Black "Hansen, Torbjorn Ringdal"]
[Result "1/2-1/2"]
[ECO "E62"]
[WhiteElo "2143"]
[BlackElo "2415"]
[Annotator "TA"]
[PlyCount "77"]
[EventDate "2024.10.03"]
[EventType "swiss"]
[EventCountry "NOR"]
[SourceTitle "playchess.com"]
[Source "ChessBase"]
[SourceQuality "1"]
[TimeControl "40/6000:2400+30"]

{[%evp 12,77,0,4,37,30,32,28,43,48,44,37,87,59,55,39,71,80,85,80,89,95,103,92,97,81,83,90,87,77,86,68,75,57,72,66,81,66,72,67,111,69,75,26,18,12,92,83,80,93,104,73,74,40,35,19,27,0,0,0,0,0,0,0,0,0,0,0]} 1. d4 {[%emt 0:00:00]} Nf6 {[%emt 0:00:00]} 2. c4 {[%emt 0:00:00]} g6 {[%emt 0:00:00]} 3. g3 {[%emt 0:01:12]} Bg7 {[%emt 0:00:00]} 4. Bg2 {[%emt 0:00:05]} O-O {[%emt 0:00:00]} 5. Nc3 {[%emt 0:00:08]} d6 {[%emt 0:00:00]} 6. h3 {[%emt 0:00:57]} Nc6 {[%emt 0:00:48]} 7. Nf3 {[%emt 0:03:12]} Bd7 {[%emt 0:02:22]} 8. e4 {[%emt 0:04:33]} e5 {[%emt 0:01:06] [#] aiming for ...exd4.} 9. d5 {[%emt 0:03:30]} Nd4 {[%emt 0:00:00] White has an edge.} 10. Be3 {[%emt 0:00:27]} Nxf3+ {[%emt 0:14:10]} 11. Bxf3 {[%emt 0:00:00]} a5 {[%emt 0:01:21]} (11... Ne8 $14) 12. Qd2 {[%emt 0:06:53]} a4 {[%emt 0:00:38]} 13. a3 {[%emt 0:00:34]} Qe7 {[%emt 0:05:20]} 14. O-O-O {[%emt 0:05:59]} Rfb8 {[%emt 0:04:23]} 15. Be2 {[%emt 0:03:50]} Qf8 {[%emt 0:06:49]} 16. g4 {[%emt 0:03:54]} c6 {[%emt 0:00:34]} 17. f3 {[%emt 0:04:50]} cxd5 {[%emt 0:03:13]} 18. cxd5 {[%emt 0:03:33]} b5 {[%emt 0:05:29] [#] Hoping for ...b4.} 19. Na2 {[%emt 0:00:15]} Be8 {[%emt 0:00:00]} 20. Kb1 {[%emt 0:08:08]} Nd7 {[%emt 0:01:48][%cal Bf6d7,Bd7c5,Bc5b7,Bb7a5,Ba5c4][%mdl 32]} 21. Bd3 {[%emt 0:03:09]} Nc5 {[%emt 0:05:24]} 22. Bc2 {[%emt 0:00:00]} Nb7 {[%emt 0:00:06]} 23. Nb4 {[%emt 0:04:09] White has more active pieces.} Na5 {[%emt 0:00:00]} 24. Qe2 {[%emt 0:00:21]} Nc4 {[%emt 0:05:38]} 25. Bd3 {[%emt 0:05:03]} f5 {[%emt 0:05:12]} 26. Bxc4 {[%emt 0:08:10]} bxc4 {[%emt 0:00:00]} 27. Bd2 {[%emt 0:00:05]} (27. gxf5 $16 gxf5 28. Qxc4) 27... Bb5 $11 {[%emt 0:02:12][%cal Oc4c3] ...c3! would now be deadly.} 28. Bc3 {[%emt 0:00:54] Black should prevent gxf5.} Rb7 {[%emt 0:00:38]} (28... fxe4 $11 29. fxe4 Bh6) 29. gxf5 $16 {[%emt 0:07:38]} gxf5 {[%emt 0:00:00]} 30. Rhg1 {[%emt 0:01:39][%cal Of3f4]} f4 {[%emt 0:02:06]} 31. Qg2 {[%emt 0:01:38]} Kh8 {[%emt 0:01:15]} 32. Na2 {[%emt 0:01:32]} Bf6 {[%emt 0:01:37][%cal Bg7f6,Bf6d8,Bd8b6][%mdl 32]} 33. Rc1 {[%emt 0:02:55]} Bd8 {[%emt 0:08:15]} (33... Rg7 {simplifies} 34. Qf2 Rxg1 35. Rxg1 Qb8) 34. Be1 {[%emt 0:02:42]} Rab8 {[%emt 0:00:40] The position is equal.} 35. Nb4 {[%emt 0:00:17]} Bb6 {[%emt 0:04:47]} 36. Bf2 {[%emt 0:00:19]} Ba5 {[%emt 0:04:42]} 37. Be1 {[%emt 0:00:48]} Bb6 {[%emt 0:00:12]} 38. Bf2 {[%emt 0:00:00]} Ba5 {[%emt 0:00:00]} 39. Be1 {[%emt 0:00:00] Weighted Error Value: White=0.10 (very precise) /Black=0.10 (very precise) .  Mistake:       	White=1     	Black=2      Inaccurate:     	White=4     	Black=2      OK:         	White=13    	Black=16     Best:        	White=1     	---} 1/2-1/2

[Event "Fagernes GM Open Autumn 2024"]
[Site "Fagernes"]
[Date "2024.10.06"]
[Round "1.14"]
[White "Sherman, Raem"]
[Black "Mannion, Stephen R"]
[Result "1/2-1/2"]
[ECO "A13"]
[WhiteElo "2390"]
[BlackElo "2142"]
[Annotator "TA"]
[PlyCount "87"]
[EventDate "2024.10.03"]
[EventType "swiss"]
[EventCountry "NOR"]
[SourceTitle "playchess.com"]
[Source "ChessBase"]
[SourceQuality "1"]
[TimeControl "40/6000:2400+30"]

{[%evp 19,87,14,29,22,20,10,23,3,23,7,21,28,39,0,37,28,51,31,67,66,68,70,56,60,58,60,48,47,65,25,23,21,48,30,39,29,44,37,50,39,59,60,53,34,50,46,58,52,72,0,0,-12,-12,-370,-355,-334,-340,-335,-87,-108,-109,-93,-103,-103,-43,-70,-70,-75,-67,-79]} 1. Nf3 {[%emt 0:00:00]} d5 {[%emt 0:00:00]} 2. e3 {[%emt 0:00:00]} Nf6 {[%emt 0:00:00]} 3. c4 {[%emt 0:00:00]} e6 {[%emt 0:00:00]} 4. b3 {[%emt 0:00:00]} c5 {[%emt 0:00:00]} 5. Bb2 {[%emt 0:00:00]} Nc6 {[%emt 0:00:00]} 6. cxd5 {[%emt 0:00:00]} exd5 {[%emt 0:00:00]} 7. Bb5 {[%emt 0:00:00]} Bd6 {[%emt 0:00:00]} 8. O-O {[%emt 0:00:00]} O-O {[%emt 0:00:00]} 9. d4 {[%emt 0:00:00]} cxd4 {[%emt 0:00:00]} 10. Nxd4 {[%emt 0:00:00]} Bd7 {[%emt 0:02:20]} 11. Nd2 {[%emt 0:00:00]} Re8 {[%emt 0:10:09]} 12. Rc1 {[%emt 0:00:00]} Rc8 {[%emt 0:28:06]} 13. N2f3 {[%emt 0:06:41] White has an edge.} Qe7 {[%emt 0:00:59]} 14. Qe2 {[%emt 0:01:02]} Ba3 {[%emt 0:03:23]} 15. Nxc6 {[%emt 0:12:22]} bxc6 {[%emt 0:02:47]} 16. Ba6 {[%emt 0:00:55]} Rb8 {[%emt 0:01:04]} 17. Bd3 {[%emt 0:09:06]} Rb6 {[%emt 0:19:23]} 18. h3 {[%emt 0:09:50]} Ne4 {[%emt 0:00:37]} 19. Bxa3 {[%emt 0:05:39]} Qxa3 {[%emt 0:00:00]} 20. Qc2 {[%emt 0:01:03]} h6 {[%emt 0:01:24]} 21. Rfd1 {[%emt 0:02:02][%cal Bf1d1,Bd1d3,Bd3c3,Bc3c5][%mdl 32]} a5 {[%emt 0:11:27]} 22. Nd4 {[%emt 0:07:02]} a4 {[%emt 0:05:30]} 23. Bxe4 {[%emt 0:12:46]} (23. bxa4 Rb2 24. Bxe4 Rxc2 25. Bxc2 c5 $17 (25... Qxa2 26. Ra1 $15)) 23... Rxe4 {[%emt 0:00:00]} 24. Rd3 {[%emt 0:00:00]} axb3 {[%emt 0:03:28]} 25. axb3 {[%emt 0:00:02]} Re8 {[%emt 0:00:17]} 26. Rc3 {[%emt 0:01:53]} Rc8 {[%emt 0:01:31]} 27. Rc5 {[%emt 0:00:00]} Rcb8 {[%emt 0:02:01]} 28. Qd1 {[%emt 0:06:10]} Rc8 {[%emt 0:00:54]} 29. Qh5 {[%emt 0:03:11]} Qa6 {[%emt 0:00:25]} 30. Qe5 {[%emt 0:01:11]} Qb7 {[%emt 0:00:43]} 31. Qe7 {[%emt 0:00:09]} Re8 {[%emt 0:01:15]} 32. Qd6 {[%emt 0:00:00]} Rc8 {[%emt 0:00:00]} 33. R1c3 {[%emt 0:01:00]} Ra6 {[%emt 0:00:00] [#]} 34. e4 {[%emt 0:02:00] White is more active.} dxe4 $11 {[%emt 0:00:00]} 35. Rg3 {[%emt 0:05:52]} Qc7 {[%emt 0:00:00]} 36. Qe7 {[%emt 0:00:00][%mdl 8192] [#]} (36. Qxh6 $2 Qxg3 37. fxg3 gxh6 $19) (36. Qxc7 $11 Ra1+ (36... Rxc7 37. Re3 $11) 37. Kh2 Rxc7 38. Re3) 36... Ra1+ $1 $19 {[%emt 0:00:11]} 37. Kh2 {[%emt 0:00:00] Nb5 would now be deadly.} Re8 {[%emt 0:00:00]} 38. Qh4 {[%emt 0:00:48]} (38. Nxc6 $2 Qxc6 $19 (38... Rxe7 $2 39. Nxe7+ Kf8 40. Ng6+ fxg6 41. Rxc7 $18) (38... Rxe7 $2 39. Nxe7+ Kf8 40. Ng6+ fxg6 41. Rxc7 $18)) 38... Qd6 $2 {[%emt 0:00:00]} (38... e3 $19 {and Black stays clearly on top.} 39. fxe3 Rxe3) 39. Rh5 {[%emt 0:01:52]} Kf8 {[%emt 0:00:01]} ({Of course not} 39... Qxd4 $6 40. Rxh6 f5 (40... Qxf2 41. Rh8#) (40... g6 41. Rhxg6+ fxg6 42. Rxg6+ Kf8 43. Rf6+ Ke7 44. Rxc6+ Kf7 45. Qf4+ Kg7 46. Qg5+ Kf7 47. Qf4+ Kg7 48. Qg3+ Kf8 49. Qf4+ Ke7 50. Qh4+ Kf7 51. Qf4+ $11) 41. Rh7 $11 (41. Rhg6 Ra7 $19)) 40. Nf5 {[%emt 0:01:20]} Bxf5 {[%emt 0:00:42]} 41. Rxf5 {[%emt 0:40:46]} e3 {[%emt 0:13:18]} (41... Re6 $17 42. Qh5 Ra7) 42. Qc4 {[%emt 0:00:00]} f6 {[%emt 0:00:44]} 43. fxe3 {[%emt 0:00:00]} Rxe3 {[%emt 0:00:13][%csl Ge3][%cal Rd6g3]} 44. Qc5 {[%emt 0:00:00] Weighted Error Value: White=0.27 (precise) /Black=0.21 (precise) .  Loses game:     	White=1     	---        Missed win:     	---       	Black=1      Mistake:       	White=1     	Black=1      Inaccurate:     	White=3     	Black=3      OK:         	White=13    	Black=10     Best:        	White=1     	Black=2      Strong:       	---       	Black=1} 1/2-1/2

[Event "Fagernes GM Open Autumn 2024"]
[Site "Fagernes"]
[Date "2024.10.06"]
[Round "1.15"]
[White "Aamodt, Peder Marcus"]
[Black "Moksh Amit Doshi"]
[Result "1/2-1/2"]
[ECO "C70"]
[WhiteElo "2126"]
[BlackElo "2377"]
[Annotator "RC"]
[PlyCount "91"]
[EventDate "2024.10.03"]
[EventType "swiss"]
[EventCountry "NOR"]
[SourceTitle "playchess.com"]
[Source "ChessBase"]
[SourceQuality "1"]
[TimeControl "40/6000:2400+30"]

1. e4 {[%emt 0:00:00]} e5 {[%emt 0:00:00]} 2. Nf3 {[%emt 0:00:00]} Nc6 {[%emt 0:00:00]} 3. Bb5 {[%emt 0:00:00]} a6 {[%emt 0:00:00]} 4. Ba4 {[%emt 0:00:00]} Bc5 {[%emt 0:00:00]} 5. c3 {[%emt 0:00:51]} Nge7 {[%emt 0:00:00]} 6. d4 {[%emt 0:01:16]} exd4 {[%emt 0:00:00]} 7. cxd4 {[%emt 0:00:00]} Bb4+ {[%emt 0:00:00]} 8. Bd2 {[%emt 0:03:13]} Bxd2+ {[%emt 0:00:00]} 9. Qxd2 {[%emt 0:00:30]} d5 {[%emt 0:00:00]} 10. exd5 {[%emt 0:00:57]} Qxd5 {[%emt 0:00:00]} 11. O-O {[%emt 0:00:29]} O-O {[%emt 0:04:20]} 12. Nc3 {[%emt 0:02:52]} Qd6 {[%emt 0:10:57]} 13. d5 {[%emt 0:32:02]} Nb4 {[%emt 0:02:09]} 14. Bb3 {[%emt 0:01:20]} Bf5 {[%emt 0:11:01]} 15. Rad1 {[%emt 0:23:20]} Rad8 {[%emt 0:01:57]} 16. Nd4 {[%emt 0:04:06]} Bg6 {[%emt 0:01:18]} 17. Nde2 {[%emt 0:01:54]} Nd3 {[%emt 0:07:17]} 18. Ng3 {[%emt 0:03:44]} Qf4 {[%emt 0:11:42]} 19. Qxf4 {[%emt 0:02:41]} Nxf4 {[%emt 0:00:00]} 20. Rfe1 {[%emt 0:00:04]} Nc8 {[%emt 0:01:30]} 21. Nge4 {[%emt 0:01:38]} Rfe8 {[%emt 0:03:29]} 22. g3 {[%emt 0:00:40]} Bxe4 {[%emt 0:00:00]} 23. Nxe4 {[%emt 0:00:00]} Ng6 {[%emt 0:00:00]} 24. Kg2 {[%emt 0:02:05]} Kf8 {[%emt 0:01:35]} 25. h4 {[%emt 0:02:37]} Re7 {[%emt 0:03:03]} 26. h5 {[%emt 0:05:17]} Ne5 {[%emt 0:00:48]} 27. h6 {[%emt 0:01:17]} gxh6 {[%emt 0:01:26]} 28. f4 {[%emt 0:01:35]} Nd7 {[%emt 0:00:46]} 29. Nf2 {[%emt 0:02:09]} Nf6 {[%emt 0:01:01]} 30. Re5 {[%emt 0:00:31]} Nb6 {[%emt 0:00:13]} 31. Rf5 {[%emt 0:01:40]} Kg7 {[%emt 0:02:38]} 32. g4 {[%emt 0:00:00]} Red7 {[%emt 0:04:05]} 33. g5 {[%emt 0:00:09]} hxg5 {[%emt 0:00:00]} 34. Rxg5+ {[%emt 0:00:24]} Kf8 {[%emt 0:00:00]} 35. Rf5 {[%emt 0:00:06]} Nfxd5 {[%emt 0:01:54]} 36. Kf3 {[%emt 0:00:00]} c5 {[%emt 0:02:35]} 37. Rh1 {[%emt 0:00:00]} c4 {[%emt 0:00:00]} 38. Bc2 {[%emt 0:00:00]} Nb4 {[%emt 0:01:21]} 39. Be4 {[%emt 0:00:00]} c3 {[%emt 0:03:24]} 40. bxc3 {[%emt 0:00:00]} Nxa2 {[%emt 0:00:00]} 41. Rxh7 {[%emt 0:40:47]} Nxc3 {[%emt 0:41:06]} 42. Rh8+ {[%emt 0:00:00]} Kg7 {[%emt 0:00:00]} 43. Rxd8 {[%emt 0:00:00]} Rxd8 {[%emt 0:00:00]} 44. Bxb7 {[%emt 0:00:00]} Nb5 {[%emt 0:00:00]} 45. Rg5+ {[%emt 0:00:00]} Kf8 {[%emt 0:00:00]} 46. Bxa6 {[%emt 0:00:00]} 1/2-1/2

[Event "Fagernes GM Open Autumn 2024"]
[Site "Fagernes"]
[Date "2024.10.06"]
[Round "1.16"]
[White "Wallace, John Paul"]
[Black "Gaikwad, Siddhant"]
[Result "1-0"]
[ECO "D31"]
[WhiteElo "2373"]
[BlackElo "2039"]
[Annotator "RC"]
[PlyCount "41"]
[EventDate "2024.10.03"]
[EventType "swiss"]
[EventCountry "NOR"]
[SourceTitle "playchess.com"]
[Source "ChessBase"]
[SourceQuality "1"]
[TimeControl "40/6000:2400+30"]

1. Nf3 {[%emt 0:00:00]} d5 {[%emt 0:00:24]} 2. d4 {[%emt 0:00:00]} e6 {[%emt 0:00:00]} 3. c4 {[%emt 0:00:00]} a6 {[%emt 0:00:00]} 4. cxd5 {[%emt 0:00:00]} exd5 {[%emt 0:00:00]} 5. Nc3 {[%emt 0:00:00]} h6 {[%emt 0:00:00]} 6. Bf4 {[%emt 0:00:00]} Nf6 {[%emt 0:00:00]} 7. e3 {[%emt 0:00:00]} Bd6 {[%emt 0:02:50]} 8. Be5 {[%emt 0:00:00]} c6 {[%emt 0:03:58]} 9. Bd3 {[%emt 0:00:00]} O-O {[%emt 0:05:29]} 10. O-O {[%emt 0:00:00]} Bg4 {[%emt 0:08:14]} 11. h3 {[%emt 0:00:00]} Bxf3 {[%emt 0:04:53]} 12. gxf3 {[%emt 0:05:14]} Re8 {[%emt 0:14:27]} 13. f4 {[%emt 0:02:57]} Bf8 {[%emt 0:03:42]} 14. Kh2 {[%emt 0:03:08]} Nbd7 {[%emt 0:01:38]} 15. Rg1 {[%emt 0:01:04]} b5 {[%emt 0:19:54]} 16. Qf3 {[%emt 0:09:04]} b4 {[%emt 0:06:07]} 17. Ne2 {[%emt 0:00:33]} Ne4 {[%emt 0:01:47]} 18. Bxg7 {[%emt 0:05:07]} Bxg7 {[%emt 0:02:02]} 19. Bxe4 {[%emt 0:00:11]} dxe4 {[%emt 0:16:04]} 20. Qg4 {[%emt 0:00:38]} Qf6 {[%emt 0:00:00]} 21. Ng3 {[%emt 0:04:02]} 1-0

[Event "Fagernes GM Open Autumn 2024"]
[Site "Fagernes"]
[Date "2024.10.06"]
[Round "1.17"]
[White "Harish, Neeraj"]
[Black "Kanyamarala, Tarun"]
[Result "1/2-1/2"]
[ECO "B43"]
[WhiteElo "2024"]
[BlackElo "2369"]
[Annotator "RC"]
[PlyCount "93"]
[EventDate "2024.10.03"]
[EventType "swiss"]
[EventCountry "NOR"]
[SourceTitle "playchess.com"]
[Source "ChessBase"]
[SourceQuality "1"]
[TimeControl "40/6000:2400+30"]

1. e4 {[%emt 0:00:00]} c5 {[%emt 0:00:00]} 2. Nf3 {[%emt 0:00:00]} e6 {[%emt 0:00:00]} 3. d4 {[%emt 0:00:00]} cxd4 {[%emt 0:00:00]} 4. Nxd4 {[%emt 0:00:00]} a6 {[%emt 0:00:00]} 5. Nc3 {[%emt 0:00:00]} Qc7 {[%emt 0:00:00]} 6. Bd3 {[%emt 0:00:00]} Nf6 {[%emt 0:00:00]} 7. Qe2 {[%emt 0:00:00]} Bb4 {[%emt 0:00:00]} 8. Bd2 {[%emt 0:00:00]} d6 {[%emt 0:00:00]} 9. g4 {[%emt 0:02:05]} Bc5 {[%emt 0:20:07]} 10. Nb3 {[%emt 0:01:38]} Nc6 {[%emt 0:00:00]} 11. O-O-O {[%emt 0:08:19]} Ne5 {[%emt 0:11:48]} 12. g5 {[%emt 0:01:43]} Nfd7 {[%emt 0:08:31]} 13. f4 {[%emt 0:03:42]} Nxd3+ {[%emt 0:00:00]} 14. Qxd3 {[%emt 0:05:49]} b5 {[%emt 0:02:56]} 15. Rhe1 {[%emt 0:07:39]} Bb7 {[%emt 0:14:14]} 16. f5 {[%emt 0:03:51]} Ne5 {[%emt 0:11:47]} 17. Qh3 {[%emt 0:00:00]} exf5 {[%emt 0:01:27]} 18. exf5 {[%emt 0:01:55]} O-O {[%emt 0:03:34]} 19. Ne4 {[%emt 0:03:22]} Bxe4 {[%emt 0:06:12]} 20. Rxe4 {[%emt 0:00:02]} Rac8 {[%emt 0:00:30]} 21. c3 {[%emt 0:11:17]} Qb7 {[%emt 0:06:11]} 22. Nxc5 {[%emt 0:08:18]} Rxc5 {[%emt 0:00:00]} 23. Rh4 {[%emt 0:00:03]} Qf3 {[%emt 0:00:58]} 24. Qxf3 {[%emt 0:00:07]} Nxf3 {[%emt 0:00:00]} 25. Rf4 {[%emt 0:00:00]} Nxd2 {[%emt 0:02:28]} 26. Rxd2 {[%emt 0:00:00]} Rd8 {[%emt 0:00:41]} 27. h4 {[%emt 0:03:59]} g6 {[%emt 0:00:36]} 28. fxg6 {[%emt 0:00:48]} fxg6 {[%emt 0:01:36]} 29. Rf6 {[%emt 0:02:29]} Rc6 {[%emt 0:02:17]} 30. Rd4 {[%emt 0:02:06]} Kg7 {[%emt 0:00:00]} 31. Kd2 {[%emt 0:05:48]} Rd7 {[%emt 0:00:00]} 32. Re4 {[%emt 0:05:29]} Rf7 {[%emt 0:01:33]} 33. Rxf7+ {[%emt 0:00:48]} Kxf7 {[%emt 0:00:00]} 34. Kd3 {[%emt 0:00:00]} Rc5 {[%emt 0:01:15]} 35. a4 {[%emt 0:00:51]} d5 {[%emt 0:00:00]} 36. Rf4+ {[%emt 0:00:06]} Ke7 {[%emt 0:00:00]} 37. Rf6 {[%emt 0:00:14]} a5 {[%emt 0:00:07]} 38. Rb6 {[%emt 0:03:17]} bxa4 {[%emt 0:00:00]} 39. Rb7+ {[%emt 0:00:00]} Ke6 {[%emt 0:00:00]} 40. Rxh7 {[%emt 0:00:00]} Rb5 {[%emt 0:00:10]} 41. Ra7 {[%emt 0:41:11]} Rxb2 {[%emt 0:41:01]} 42. Rxa5 {[%emt 0:00:12]} Ra2 {[%emt 0:00:20]} 43. Ra6+ {[%emt 0:03:51]} Ke5 {[%emt 0:00:12]} 44. Rxg6 {[%emt 0:00:17]} Rh2 {[%emt 0:00:05]} 45. Ra6 {[%emt 0:02:58]} Rxh4 {[%emt 0:00:00]} 46. g6 {[%emt 0:00:00]} Rg4 {[%emt 0:00:00]} 47. g7 {[%emt 0:00:00]} 1/2-1/2

[Event "Fagernes GM Open Autumn 2024"]
[Site "Fagernes"]
[Date "2024.10.06"]
[Round "1.18"]
[White "Sidhant, Mohapatra"]
[Black "Kaewpitakkun, Pantham"]
[Result "1-0"]
[ECO "B50"]
[WhiteElo "2369"]
[BlackElo "2023"]
[Annotator "RC"]
[PlyCount "57"]
[EventDate "2024.10.03"]
[EventType "swiss"]
[EventCountry "NOR"]
[SourceTitle "playchess.com"]
[Source "ChessBase"]
[SourceQuality "1"]
[TimeControl "40/6000:2400+30"]

1. e4 {[%emt 0:00:00]} c5 {[%emt 0:00:00]} 2. Nf3 {[%emt 0:00:00]} d6 {[%emt 0:00:00]} 3. Nc3 {[%emt 0:00:00]} Nf6 {[%emt 0:00:00]} 4. e5 {[%emt 0:00:58]} dxe5 {[%emt 0:02:30]} 5. Nxe5 {[%emt 0:00:11]} a6 {[%emt 0:06:30]} 6. g3 {[%emt 0:00:00]} e6 {[%emt 0:03:46]} 7. Bg2 {[%emt 0:00:00]} Be7 {[%emt 0:03:23]} 8. d3 {[%emt 0:01:41]} O-O {[%emt 0:03:29]} 9. a4 {[%emt 0:00:08]} Nbd7 {[%emt 0:04:23]} 10. Nc4 {[%emt 0:03:45]} Nb6 {[%emt 0:07:09]} 11. Ne3 {[%emt 0:02:11]} Nbd5 {[%emt 0:05:33]} 12. O-O {[%emt 0:01:57]} b6 {[%emt 0:04:48]} 13. Ncxd5 {[%emt 0:13:46]} exd5 {[%emt 0:00:37]} 14. Qf3 {[%emt 0:01:19]} Bb7 {[%emt 0:12:39]} 15. Nf5 {[%emt 0:00:16]} Nd7 {[%emt 0:06:51]} 16. Bf4 {[%emt 0:15:07]} Bf6 {[%emt 0:03:18]} 17. Rae1 {[%emt 0:00:00]} g6 {[%emt 0:04:40]} 18. Nh6+ {[%emt 0:06:34]} Kg7 {[%emt 0:02:02]} 19. Ng4 {[%emt 0:00:00]} Bg5 {[%emt 0:02:08]} 20. Bd6 {[%emt 0:00:01]} Re8 {[%emt 0:00:26]} 21. h4 {[%emt 0:00:00]} Be7 {[%emt 0:00:20]} 22. Bf4 {[%emt 0:01:17]} h5 {[%emt 0:01:38]} 23. Ne3 {[%emt 0:08:25]} Nf6 {[%emt 0:01:12]} 24. Be5 {[%emt 0:00:00]} Kg8 {[%emt 0:02:20]} 25. c3 {[%emt 0:01:01]} Ra7 {[%emt 0:03:10]} 26. Bxf6 {[%emt 0:00:10]} Bxf6 {[%emt 0:00:03]} 27. Nxd5 {[%emt 0:00:00]} Bxd5 {[%emt 0:00:00]} 28. Qxd5 {[%emt 0:00:07]} Qxd5 {[%emt 0:00:00]} 29. Rxe8+ {[%emt 0:00:00]} 1-0